bitfinex/quotes_BTCUSD_20240831
["timestamp","ask_amount","ask_price","bid_price","bid_amount"]
[1725101226236,0.170936,59194.0,59193.0,0.11888616]
[1725101229150,0.170936,59194.0,59193.0,0.0684198]
[1725101230417,0.170936,59194.0,59193.0,0.14411934]
[1725101230835,0.170936,59194.0,59193.0,0.14414072]
[1725101232246,0.002,59194.0,59193.0,0.59850843]
[1725101232461,0.002,59194.0,59193.0,0.52278751]
[1725101240837,0.002,59194.0,59193.0,0.52278171]
[1725101245185,0.002,59194.0,59193.0,0.6237951]
[1725101245648,0.002,59194.0,59193.0,0.62379643]
[1725101246526,0.002,59194.0,59193.0,0.79273443]
[1725101250323,0.002,59194.0,59193.0,1.0295967]
[1725101250544,0.002,59194.0,59193.0,0.6544348]
[1725101250824,0.002,59194.0,59193.0,1.02958669]
[1725101251042,0.002,59194.0,59193.0,1.78140218]
[1725101251043,0.001,59194.0,59193.0,1.78140218]
[1725101251268,0.000818,59197.0,59196.0,0.98445]
[1725101251478,0.000818,59197.0,59196.0,1.44278338]
[1725101251681,0.000818,59197.0,59196.0,1.44178338]
[1725101252318,0.000818,59197.0,59196.0,1.23006123]
[1725101253385,0.001818,59197.0,59196.0,1.23206123]
[1725101253815,0.001818,59197.0,59196.0,1.24606123]
[1725101254484,0.001818,59197.0,59196.0,1.11992338]
[1725101255334,0.001818,59197.0,59196.0,0.74477149]
[1725101255547,0.001818,59197.0,59196.0,1.11988174]
[1725101256437,0.001818,59197.0,59196.0,1.2459678]
[1725101257285,0.001818,59197.0,59196.0,1.11988174]
[1725101261509,0.001818,59197.0,59196.0,1.22067445]
[1725101261736,0.001818,59197.0,59196.0,1.11988174]
[1725101262269,0.001818,59197.0,59196.0,1.45774174]
[1725101263272,0.001818,59197.0,59196.0,1.55851681]
[1725101269116,0.001818,59197.0,59196.0,1.22065681]
[1725101269343,0.001818,59197.0,59196.0,1.55851681]
[1725101269561,0.001818,59197.0,59196.0,1.45774174]
[1725101270023,0.001818,59197.0,59196.0,1.46474174]
[1725101270486,0.001818,59197.0,59196.0,1.80260174]
[1725101271389,0.001818,59197.0,59196.0,1.81260174]
[1725101273309,0.001818,59197.0,59196.0,1.79860174]
[1725101273922,0.000818,59197.0,59196.0,1.81960174]
[1725101274345,0.001818,59197.0,59196.0,1.83360174]
[1725101274763,0.001818,59197.0,59196.0,1.84760174]
[1725101279893,0.001818,59197.0,59196.0,1.84850154]
[1725101282157,0.001818,59197.0,59196.0,2.18636154]
[1725101282296,0.001818,59197.0,59196.0,1.84850154]
[1725101282727,0.001818,59197.0,59196.0,2.18636154]
[1725101283394,0.001818,59197.0,59196.0,1.84850154]
[1725101283861,0.001818,59197.0,59196.0,2.18636154]
[1725101284085,0.0082452,59203.0,59196.0,2.18636154]
[1725101284319,0.168872,59217.0,59213.0,0.168881]
[1725101284551,0.168873,59216.0,59213.0,0.169001]
[1725101284970,0.168873,59216.0,59214.0,0.00337717]
[1725101285208,0.00858,59219.0,59216.0,0.168872]
[1725101285431,0.10858,59219.0,59217.0,0.08306149]
[1725101285647,0.10858,59219.0,59218.0,0.168867]
[1725101285848,0.10858,59219.0,59218.0,0.168987]
[1725101286060,0.00858,59219.0,59218.0,0.168987]
[1725101286268,0.00858,59219.0,59218.0,0.00012]
[1725101286694,0.00858,59219.0,59218.0,0.168987]
[1725101287131,0.00858,59219.0,59218.0,0.506722]
[1725101288043,0.00858,59219.0,59218.0,0.520722]
[1725101288267,0.00858,59219.0,59218.0,0.534722]
[1725101288482,0.00858,59219.0,59218.0,0.520722]
[1725101288922,0.00858,59219.0,59218.0,0.534722]
[1725101289547,0.00858,59219.0,59218.0,0.196987]
[1725101289755,0.00858,59219.0,59218.0,0.534722]
[1725101290793,0.00858,59219.0,59218.0,0.196987]
[1725101291202,0.00858,59219.0,59218.0,0.534722]
[1725101291636,0.00858,59219.0,59218.0,0.872457]
[1725101291873,0.00858,59219.0,59218.0,0.534722]
[1725101294319,0.337685,59227.0,59219.0,0.337728]
[1725101294527,0.1,59226.0,59220.0,0.08306149]
[1725101294737,0.1,59226.0,59221.0,0.168857]
[1725101294738,0.168848,59225.0,59221.0,0.168857]
[1725101294948,0.168848,59225.0,59221.0,0.168977]
[1725101295776,0.1,59226.0,59222.0,0.168854]
[1725101295978,0.1,59227.0,59223.0,0.16885]
[1725101296180,0.1,59227.0,59224.0,0.08643809]
[1725101296395,0.1,59227.0,59224.0,0.08655809]
[1725101296643,0.268843,59227.0,59224.0,0.08655809]
[1725101296846,0.268843,59227.0,59224.0,0.25540809]
[1725101297055,0.268843,59227.0,59224.0,0.08655809]
[1725101297696,0.268843,59227.0,59224.0,0.09355809]
[1725101298155,0.268843,59227.0,59224.0,0.0104966]
[1725101298389,0.1,59227.0,59225.0,0.168846]
[1725101298594,0.168837,59229.0,59226.0,0.00337643]
[1725101298799,0.168839,59228.0,59226.0,0.00349643]
[1725101299002,0.1,59227.0,59226.0,0.00349643]
[1725101300405,0.0317,59232.0,59226.0,0.00349643]
[1725101300406,0.00818,59244.0,59233.0,0.005]
[1725101300632,0.00818,59244.0,59237.0,1.071939]
[1725101300849,0.00818,59244.0,59237.0,2.63147249]
[1725101302142,0.00818,59244.0,59237.0,2.64547249]
[1725101302368,0.00818,59244.0,59237.0,1.887159]
[1725101302575,0.00818,59244.0,59237.0,1.21812]
[1725101302576,0.03988,59244.0,59237.0,1.21812]
[1725101302805,0.168802,59241.0,59237.0,1.23212]
[1725101303060,0.168802,59241.0,59237.0,1.24612]
[1725101303269,0.1688,59242.0,59237.0,1.400933]
[1725101303490,0.176974,59244.0,59237.0,1.752559]
[1725101303946,0.176974,59244.0,59237.0,1.738559]
[1725101304418,0.00818,59244.0,59237.0,1.83562049]
[1725101304856,0.0028559,59238.0,59237.0,1.83562049]
[1725101305060,0.0028559,59238.0,59237.0,1.82162049]
[1725101305280,0.0028559,59238.0,59237.0,1.83562049]
[1725101306349,0.0028559,59238.0,59237.0,1.90112049]
[1725101308631,0.0028559,59238.0,59237.0,2.32184649]
[1725101312672,0.0028559,59238.0,59237.0,2.66447249]
[1725101312888,0.0028559,59238.0,59237.0,2.68747249]
[1725101313099,0.00818,59244.0,59238.0,0.849052]
[1725101313337,0.00818,59244.0,59238.0,1.017572]
[1725101313556,0.00818,59244.0,59238.0,1.40722312]
[1725101313971,0.00818,59244.0,59238.0,1.58552312]
[1725101314181,0.00818,59244.0,59238.0,1.40722312]
[1725101314427,0.00818,59244.0,59238.0,1.357193]
[1725101314671,0.00818,59244.0,59238.0,1.367193]
[1725101314878,0.00818,59244.0,59238.0,1.381193]
[1725101315107,0.00818,59244.0,59238.0,1.458593]
[1725101315326,0.00818,59244.0,59238.0,1.53363818]
[1725101315764,0.00818,59244.0,59238.0,1.53163818]
[1725101316001,0.00818,59244.0,59238.0,1.53363818]
[1725101316417,0.00818,59244.0,59238.0,1.90841503]
[1725101316633,0.00818,59244.0,59238.0,1.92241503]
[1725101317062,0.00818,59244.0,59238.0,1.92041503]
[1725101317297,0.00818,59244.0,59238.0,1.55475453]
[1725101317512,0.001218,59239.0,59238.0,1.63781602]
[1725101318158,0.001218,59239.0,59238.0,1.64281602]
[1725101318387,0.001218,59239.0,59238.0,1.56781034]
[1725101319249,0.001218,59239.0,59238.0,1.90543134]
[1725101319461,0.001218,59239.0,59238.0,2.12843891]
[1725101319683,0.001218,59239.0,59238.0,2.30873891]
[1725101319913,0.001218,59239.0,59238.0,2.66210036]
[1725101321426,0.001218,59239.0,59238.0,2.56209279]
[1725101322067,0.001218,59239.0,59238.0,2.22447179]
[1725101322657,0.001218,59239.0,59238.0,2.56209279]
[1725101322880,0.001218,59239.0,59238.0,2.20873134]
[1725101323114,0.001218,59239.0,59238.0,2.22447166]
[1725101323338,0.001218,59239.0,59238.0,2.34948112]
[1725101323783,0.001218,59239.0,59238.0,2.68710212]
[1725101324005,0.001218,59239.0,59238.0,2.34948112]
[1725101324210,0.00818,59244.0,59242.0,1.343993]
[1725101324416,0.00818,59244.0,59242.0,1.82295134]
[1725101324623,0.00818,59244.0,59242.0,2.0479532]
[1725101324848,0.00818,59244.0,59242.0,2.04792914]
[1725101325078,0.00818,59244.0,59242.0,2.04992914]
[1725101325285,0.00818,59244.0,59242.0,1.92495134]
[1725101325492,0.00818,59244.0,59242.0,1.93895134]
[1725101325703,0.00818,59244.0,59242.0,1.95295134]
[1725101328309,0.168757,59257.0,59252.0,0.505]
[1725101328518,0.168753,59258.0,59253.0,0.949067]
[1725101328724,0.168756,59257.0,59253.0,0.949067]
[1725101328943,0.0004,59259.0,59253.0,1.286722]
[1725101329357,0.0004,59259.0,59253.0,1.624257]
[1725101329823,0.0004,59259.0,59253.0,1.634257]
[1725101331720,0.0004,59259.0,59253.0,1.648257]
[1725101333739,0.0004,59259.0,59253.0,2.066492]
[1725101334189,0.0004,59259.0,59253.0,2.12150874]
[1725101334397,0.0004,59259.0,59253.0,2.076492]
[1725101334616,0.0004,59259.0,59253.0,2.11250874]
[1725101335034,0.0004,59259.0,59253.0,2.12650874]
[1725101335245,0.0004,59259.0,59253.0,2.11650874]
[1725101335475,0.0004,59259.0,59253.0,2.11750874]
[1725101335693,0.0004,59259.0,59253.0,2.11550874]
[1725101335906,0.0004,59259.0,59253.0,2.11650874]
[1725101336108,0.0004,59259.0,59253.0,2.13050874]
[1725101336321,0.0004,59259.0,59253.0,2.082492]
[1725101336523,0.0004,59259.0,59253.0,2.13050874]
[1725101336719,0.0004,59259.0,59253.0,2.13052773]
[1725101336958,0.0004,59259.0,59253.0,2.11652773]
[1725101337370,0.0004,59259.0,59253.0,2.066492]
[1725101338046,0.0004,59259.0,59253.0,2.052492]
[1725101338248,0.0004,59259.0,59253.0,2.13052773]
[1725101338657,0.0004,59259.0,59253.0,2.11652773]
[1725101338857,0.0004,59259.0,59253.0,2.11852773]
[1725101339093,0.0004,59259.0,59253.0,2.13052773]
[1725101339297,0.0004,59259.0,59253.0,2.082492]
[1725101339507,0.0004,59259.0,59253.0,2.13252773]
[1725101339711,0.0004,59259.0,59253.0,2.45719487]
[1725101340114,0.0004,59259.0,59253.0,2.52926633]
[1725101340559,0.0004,59259.0,59253.0,2.42919487]
[1725101341198,0.0004,59259.0,59253.0,2.42719487]
[1725101341416,0.0004,59259.0,59253.0,2.5522842]
[1725101341646,0.0064,59259.0,59253.0,1.95565987]
[1725101341882,0.0064,59259.0,59253.0,1.71329011]
[1725101342112,0.0064,59259.0,59253.0,1.59912487]
[1725101342321,0.0064,59259.0,59253.0,1.62712487]
[1725101342540,0.0064,59259.0,59253.0,1.61312487]
[1725101342991,0.175151,59259.0,59253.0,1.61312487]
[1725101343208,0.0064,59259.0,59253.0,1.61312487]
[1725101343418,0.175151,59259.0,59253.0,1.72729011]
[1725101343622,1e-08,59254.0,59253.0,1.64112487]
[1725101344039,1e-08,59254.0,59253.0,1.13482287]
[1725101344246,1e-08,59254.0,59253.0,1.30358987]
[1725101344481,1e-08,59254.0,59253.0,1.38975511]
[1725101344698,1e-08,59254.0,59253.0,1.28958987]
[1725101344880,1e-08,59254.0,59253.0,1.36671366]
[1725101345081,1e-08,59254.0,59253.0,1.74142665]
[1725101345289,1e-08,59254.0,59253.0,1.69942665]
[1725101345497,1e-08,59254.0,59253.0,1.61313499]
[1725101345732,1e-08,59254.0,59253.0,1.62713499]
[1725101346343,1e-08,59254.0,59253.0,1.28959999]
[1725101346756,1e-08,59254.0,59253.0,1.62713499]
[1725101347408,1e-08,59254.0,59253.0,1.28959999]
[1725101348243,1e-08,59254.0,59253.0,1.62713499]
[1725101348454,1e-08,59254.0,59253.0,1.96466999]
[1725101349476,1e-08,59254.0,59253.0,2.04773148]
[1725101350111,1e-08,59254.0,59253.0,1.71019648]
[1725101350760,1e-08,59254.0,59253.0,1.12083299]
[1725101351837,1e-08,59254.0,59253.0,1.28959999]
[1725101352465,1e-08,59254.0,59253.0,1.24619757]
[1725101352724,0.00600001,59254.0,59253.0,1.12083299]
[1725101353152,0.17476401,59254.0,59253.0,1.12083299]
[1725101354622,0.00600001,59254.0,59253.0,1.12083299]
[1725101354882,0.00600001,59254.0,59253.0,1.12084119]
[1725101355532,0.17476401,59254.0,59253.0,1.12084119]
[1725101355952,0.51229301,59254.0,59253.0,1.12084119]
[1725101356162,0.17476401,59254.0,59253.0,1.12084119]
[1725101356693,0.51229301,59254.0,59253.0,1.12084119]
[1725101356912,0.51229301,59254.0,59253.0,0.40284119]
[1725101356913,1.21905101,59254.0,59253.0,0.40284119]
[1725101357141,0.88152201,59254.0,59253.0,0.52841824]
[1725101357366,1.21905101,59254.0,59253.0,0.52841824]
[1725101357571,0.88152201,59254.0,59253.0,0.40284119]
[1725101357809,1.21905101,59254.0,59253.0,0.40284119]
[1725101358011,1.21905101,59254.0,59253.0,0.38884119]
[1725101358223,1.21905101,59254.0,59253.0,0.48934191]
[1725101358436,1.21701962,59254.0,59253.0,0.50334191]
[1725101358887,1.21701962,59254.0,59253.0,0.48934191]
[1725101359224,0.87949062,59254.0,59253.0,0.48934191]
[1725101359420,0.87949062,59254.0,59253.0,0.47534191]
[1725101359555,0.87949062,59254.0,59253.0,0.37487506]
[1725101359763,0.87949062,59254.0,59253.0,0.38487506]
[1725101361019,0.87949062,59254.0,59253.0,0.39887506]
[1725101361641,0.87949062,59254.0,59253.0,0.49943099]
[1725101361940,0.87949062,59254.0,59253.0,0.02412]
[1725101362146,0.87949062,59254.0,59253.0,0.07440663]
[1725101362279,0.87949062,59254.0,59253.0,0.02412]
[1725101362689,0.87949062,59254.0,59253.0,0.07440663]
[1725101363279,0.87949062,59254.0,59253.0,0.02412]
[1725101364483,1.21701962,59254.0,59253.0,0.02412]
[1725101368004,1.21701962,59254.0,59253.0,0.0250198]
[1725101368424,1.21783762,59254.0,59253.0,0.0250198]
[1725101369726,1.24431031,59254.0,59253.0,0.0250198]
[1725101371665,1.26197794,59254.0,59253.0,0.0250198]
[1725101375365,0.02729069,59254.0,59253.0,0.0250198]
[1725101375619,0.000818,59254.0,59253.0,0.0890198]
[1725101376748,0.169582,59254.0,59253.0,0.0890198]
[1725101376941,0.000818,59254.0,59253.0,0.0890198]
[1725101378849,0.000818,59254.0,59253.0,0.2577868]
[1725101379062,0.000818,59254.0,59253.0,1.0082568]
[1725101379517,0.000818,59254.0,59253.0,1.38298413]
[1725101382677,0.337459,59267.0,59259.0,0.064]
[1725101383016,0.437461,59266.0,59260.0,0.168746]
[1725101383315,0.168735,59265.0,59260.0,0.168866]
[1725101383519,0.168735,59265.0,59261.0,0.168744]
[1725101383713,0.1,59264.0,59261.0,0.168864]
[1725101385393,0.272737,59264.0,59261.0,0.00012]
[1725101385814,0.32806726,59266.0,59261.0,0.00012]
[1725101386015,0.168737,59264.0,59261.0,0.00312]
[1725101386200,0.169737,59264.0,59261.0,0.00312]
[1725101386661,0.169737,59264.0,59261.0,0.00012]
[1725101387096,0.0317,59266.0,59261.0,0.00112]
[1725101387352,0.168737,59264.0,59261.0,0.00112]
[1725101387571,0.168737,59264.0,59261.0,0.00012]
[1725101389103,0.168737,59264.0,59261.0,0.00312]
[1725101390205,0.168737,59264.0,59259.0,0.16875]
[1725101392187,0.16874,59263.0,59258.0,0.168753]
[1725101392393,0.16874,59263.0,59259.0,0.003]
[1725101392930,0.337462,59266.0,59260.0,0.1407]
[1725101393129,0.1,59265.0,59260.0,0.1407]
[1725101393360,0.168736,59264.0,59260.0,0.1407]
[1725101394553,0.168736,59264.0,59260.0,0.309447]
[1725101394784,0.268733,59265.0,59260.0,0.309447]
[1725101395449,0.268733,59265.0,59260.0,0.310447]
[1725101395898,0.268733,59265.0,59260.0,0.309447]
[1725101396150,0.268733,59265.0,59260.0,0.311447]
[1725101397241,0.268733,59265.0,59261.0,0.168744]
[1725101399339,0.1,59265.0,59261.0,0.170744]
[1725101399998,0.1,59265.0,59262.0,0.168741]
[1725101400897,0.168737,59264.0,59261.0,0.002]
[1725101401131,0.1,59265.0,59262.0,0.337482]
[1725101401350,0.1,59265.0,59261.0,0.339487]
[1725101401564,0.000818,59266.0,59262.0,0.168741]
[1725101401999,0.100818,59266.0,59262.0,0.168741]
[1725101402224,0.269549,59266.0,59262.0,0.168741]
[1725101402682,0.100818,59266.0,59263.0,0.232538]
[1725101402915,0.09782903,59266.0,59263.0,0.232538]
[1725101403136,0.09782903,59266.0,59263.0,0.0638]
[1725101403365,0.168725,59268.0,59263.0,0.0638]
[1725101403589,0.168728,59267.0,59263.0,0.0638]
[1725101404299,0.337447,59269.0,59263.0,0.233538]
[1725101404300,0.168723,59269.0,59263.0,0.233538]
[1725101404522,0.168723,59269.0,59263.0,0.0648]
[1725101404756,0.168723,59269.0,59263.0,0.233538]
[1725101404960,0.1,59268.0,59263.0,0.233538]
[1725101405237,0.1,59268.0,59265.0,0.168732]
[1725101405473,0.16872,59270.0,59264.0,0.168736]
[1725101405709,0.1,59269.0,59266.0,0.168729]
[1725101405947,0.1,59269.0,59264.0,0.337471]
[1725101405948,0.1,59269.0,59267.0,0.232527]
[1725101406169,0.1,59269.0,59267.0,0.0638]
[1725101406840,0.1,59271.0,59270.0,0.168719]
[1725101407053,0.00203662,59275.0,59271.0,0.232515]
[1725101407263,0.00203662,59275.0,59272.0,0.165713]
[1725101407721,0.00203662,59275.0,59271.0,0.0638]
[1725101408160,0.00203662,59275.0,59271.0,0.168714]
[1725101408365,0.00203662,59275.0,59272.0,0.0638]
[1725101409732,0.00203662,59275.0,59272.0,0.0718]
[1725101410655,0.00203662,59275.0,59272.0,0.0748]
[1725101411766,0.10203662,59275.0,59272.0,0.0748]
[1725101412000,0.16871,59273.0,59272.0,0.011]
[1725101412231,0.506131,59273.0,59272.0,0.011]
[1725101412422,0.843552,59273.0,59272.0,0.011]
[1725101413110,0.843552,59273.0,59268.0,0.0638]
[1725101413111,0.337421,59273.0,59268.0,0.0638]
[1725101413330,0.337434,59271.0,59268.0,0.0638]
[1725101413533,0.168722,59269.0,59268.0,0.0638]
[1725101414425,0.168722,59269.0,59268.0,0.0698]
[1725101414691,0.17161558,59269.0,59268.0,0.0638]
[1725101415138,0.00289358,59269.0,59268.0,0.0738]
[1725101415552,0.00289358,59269.0,59268.0,0.0638]
[1725101416009,0.00289358,59269.0,59268.0,0.0878]
[1725101417553,0.00289358,59269.0,59268.0,0.13798001]
[1725101417766,0.16872,59270.0,59268.0,0.13798001]
[1725101418645,0.16872,59270.0,59268.0,0.12398001]
[1725101419105,0.168717,59271.0,59268.0,0.12698001]
[1725101419557,0.10203662,59275.0,59270.0,0.168718]
[1725101419775,0.000818,59270.0,59269.0,0.21892266]
[1725101419971,0.00371198,59270.0,59269.0,0.28242266]
[1725101420844,0.00371198,59270.0,59269.0,0.11370166]
[1725101421068,0.00371198,59270.0,59269.0,0.12270166]
[1725101421273,0.17243098,59270.0,59269.0,0.12270166]
[1725101421971,0.17243098,59270.0,59269.0,0.12272801]
[1725101422220,0.00371198,59270.0,59269.0,0.12272801]
[1725101422400,0.17243098,59270.0,59269.0,0.12272801]
[1725101422528,0.17243098,59270.0,59269.0,0.13272801]
[1725101422745,0.00371198,59270.0,59269.0,0.13272801]
[1725101423368,0.00371198,59270.0,59269.0,0.0825]
[1725101424438,0.00371198,59270.0,59269.0,0.15784202]
[1725101424632,0.00371198,59270.0,59269.0,0.32656402]
[1725101424853,0.00371198,59270.0,59269.0,0.70122977]
[1725101425476,0.00371198,59270.0,59269.0,0.32656402]
[1725101425910,0.00371198,59270.0,59269.0,0.40286402]
[1725101426313,0.00371198,59270.0,59269.0,0.74030802]
[1725101426524,0.000818,59270.0,59269.0,0.74030802]
[1725101427387,0.000818,59270.0,59269.0,1.11497374]
[1725101428261,0.000818,59270.0,59269.0,1.19803523]
[1725101429873,0.000818,59270.0,59269.0,1.53547923]
[1725101430074,0.000818,59270.0,59269.0,1.19803523]
[1725101433420,0.000818,59270.0,59269.0,1.53547923]
[1725101433627,0.000818,59270.0,59269.0,1.19803523]
[1725101433874,0.000818,59270.0,59269.0,1.45241774]
[1725101434090,0.000818,59270.0,59269.0,1.11497374]
[1725101434557,0.000818,59270.0,59269.0,1.45241774]
[1725101434762,0.000818,59270.0,59269.0,1.11497374]
[1725101434979,0.000818,59270.0,59269.0,1.37707572]
[1725101435197,0.000818,59270.0,59269.0,1.03963172]
[1725101436313,0.000818,59270.0,59269.0,1.37706616]
[1725101436538,0.000818,59270.0,59269.0,1.03962216]
[1725101437231,0.000818,59270.0,59269.0,1.37706616]
[1725101437447,0.000818,59270.0,59269.0,1.03962216]
[1725101438087,0.000818,59270.0,59269.0,1.37706616]
[1725101438542,0.000818,59270.0,59269.0,1.46012765]
[1725101439217,0.000818,59270.0,59269.0,1.37706616]
[1725101439425,0.000818,59270.0,59269.0,1.46012765]
[1725101440341,0.000818,59270.0,59269.0,1.56065584]
[1725101441441,0.000818,59270.0,59269.0,1.56067386]
[1725101444525,0.000818,59270.0,59269.0,1.46012551]
[1725101444747,0.000818,59270.0,59269.0,1.37706402]
[1725101445001,0.000818,59270.0,59269.0,1.47764443]
[1725101445432,0.000818,59270.0,59269.0,1.37706402]
[1725101446713,0.000818,59270.0,59269.0,1.37796382]
[1725101447162,0.168697,59278.0,59269.0,1.37796382]
[1725101447163,0.15010218,59279.0,59271.0,0.337427]
[1725101447400,0.15010218,59279.0,59273.0,0.05029579]
[1725101447625,0.17159123,59278.0,59273.0,0.21900379]
[1725101448067,0.16279651,59278.0,59273.0,0.21900379]
[1725101448508,0.15990228,59278.0,59273.0,0.21900379]
[1725101448957,0.15990228,59278.0,59274.0,0.168706]
[1725101449409,0.1687,59277.0,59274.0,0.05029579]
[1725101449848,0.00289332,59276.0,59274.0,0.05029579]
[1725101450302,0.168699,59278.0,59274.0,0.05029579]
[1725101450746,0.00289378,59277.0,59274.0,0.05029579]
[1725101451163,0.00289378,59277.0,59274.0,0.05329579]
[1725101451384,0.00289378,59277.0,59275.0,0.05029579]
[1725101452041,0.00289378,59277.0,59276.0,0.1418]
[1725101452264,0.00289378,59277.0,59276.0,0.647906]
[1725101452482,0.1,59284.0,59279.0,0.0652]
[1725101452717,0.168686,59282.0,59279.0,0.0652]
[1725101452928,0.10289604,59281.0,59280.0,0.0801]
[1725101453157,0.00289604,59281.0,59280.0,1.40919449]
[1725101453392,0.0102162,59287.0,59286.0,0.843367]
[1725101453604,0.0102162,59287.0,59286.0,1.14719173]
[1725101453859,0.0102162,59287.0,59286.0,1.52175796]
[1725101454286,0.0102162,59287.0,59286.0,1.44629472]
[1725101454509,0.0102162,59287.0,59286.0,1.07172849]
[1725101456101,0.0102162,59287.0,59286.0,1.08572849]
[1725101456321,0.0102162,59287.0,59286.0,0.74838149]
[1725101456569,0.0102162,59287.0,59286.0,0.39220423]
[1725101457233,0.0102162,59287.0,59286.0,0.341973]
[1725101457459,0.0102162,59287.0,59286.0,0.39219272]
[1725101457688,0.0102162,59287.0,59286.0,0.22351972]
[1725101457903,0.0102162,59287.0,59286.0,0.39219272]
[1725101458112,0.0102162,59287.0,59286.0,0.341973]
[1725101458547,0.16866,59291.0,59286.0,0.341973]
[1725101459031,0.337315,59292.0,59287.0,0.168668]
[1725101459032,0.168658,59292.0,59287.0,0.168668]
[1725101459481,0.168653,59294.0,59291.0,0.08306149]
[1725101459728,0.168653,59294.0,59290.0,0.08306149]
[1725101459957,0.00293913,59293.0,59290.0,0.25172249]
[1725101460176,0.00293913,59293.0,59291.0,0.168658]
[1725101460420,0.268649,59295.0,59290.0,0.08306149]
[1725101460642,0.268649,59295.0,59290.0,0.25172149]
[1725101460863,0.168652,59294.0,59290.0,0.16866]
[1725101461084,0.1,59295.0,59291.0,0.168658]
[1725101461319,0.1,59295.0,59292.0,0.0652]
[1725101461561,0.1,59296.0,59292.0,0.0652]
[1725101461791,0.01021583,59298.0,59293.0,0.168653]
[1725101462015,0.168643,59297.0,59292.0,0.0652]
[1725101462241,0.01021583,59298.0,59293.0,0.168651]
[1725101462242,0.1,59296.0,59293.0,0.168651]
[1725101462469,0.168642,59297.0,59293.0,0.168651]
[1725101462698,0.1,59296.0,59293.0,0.168651]
[1725101463373,0.1,59296.0,59293.0,0.176651]
[1725101463597,0.168643,59297.0,59293.0,0.176651]
[1725101463816,0.1,59296.0,59293.0,0.008]
[1725101464245,0.1,59296.0,59293.0,0.176652]
[1725101464688,0.1,59296.0,59293.0,0.008]
[1725101464689,0.00261337,59295.0,59293.0,0.008]
[1725101465110,0.10261337,59295.0,59293.0,0.017]
[1725101465584,0.10261337,59295.0,59293.0,0.008]
[1725101465801,0.10261337,59295.0,59292.0,0.0652]
[1725101466006,0.10261337,59295.0,59293.0,0.019]
[1725101466227,0.27126137,59295.0,59293.0,0.019]
[1725101466751,0.10261337,59295.0,59293.0,0.019]
[1725101466969,0.17126137,59295.0,59293.0,0.019]
[1725101467197,0.00261337,59295.0,59293.0,0.019]
[1725101467643,0.168645,59296.0,59293.0,0.009]
[1725101467866,0.00261343,59294.0,59293.0,0.009]
[1725101468112,0.00261343,59294.0,59293.0,0.0891]
[1725101468363,0.00261343,59294.0,59293.0,0.009]
[1725101468364,0.03431343,59294.0,59293.0,0.009]
[1725101468568,1.25797135,59294.0,59293.0,0.009]
[1725101468779,1.35797135,59294.0,59293.0,0.009]
[1725101468994,1.35797135,59294.0,59293.0,0.019]
[1725101469222,1.37556675,59294.0,59293.0,0.019]
[1725101469444,1.37556675,59294.0,59282.0,0.05015385]
[1725101469675,0.168685,59282.0,59281.0,0.05015385]
[1725101469908,0.506055,59282.0,59281.0,0.05015385]
[1725101470169,0.87773616,59282.0,59281.0,0.05015385]
[1725101470433,0.87773616,59282.0,59274.0,0.12538464]
[1725101470434,0.87773616,59282.0,59278.0,0.05015385]
[1725101470435,0.843467,59279.0,59278.0,0.05015385]
[1725101470665,0.843482,59278.0,59277.0,0.05015385]
[1725101470903,1.180875,59278.0,59277.0,0.05015385]
[1725101471124,1.18348374,59278.0,59277.0,0.05015385]
[1725101472283,1.18348374,59278.0,59277.0,0.05715385]
[1725101473246,1.18348374,59278.0,59277.0,0.06315385]
[1725101475253,1.28348374,59278.0,59277.0,0.06315385]
[1725101475501,1.28376359,59278.0,59277.0,0.013]
[1725101483154,1.31022712,59278.0,59277.0,0.013]
[1725101485222,1.31022712,59278.0,59277.0,0.0138998]
[1725101486326,1.28376359,59278.0,59277.0,0.0138998]
[1725101486811,1.11506759,59278.0,59277.0,0.0138998]
[1725101487042,1.28376359,59278.0,59277.0,0.0138998]
[1725101487740,1.28348374,59278.0,59277.0,0.0138998]
[1725101498208,1.28430174,59278.0,59277.0,0.0138998]
[1725101498637,0.94690874,59278.0,59277.0,0.0138998]
[1725101502239,0.60951574,59278.0,59277.0,0.0138998]
[1725101502715,0.10342674,59278.0,59277.0,0.0138998]
[1725101502953,0.00342674,59278.0,59277.0,0.0750998]
[1725101503180,0.10342674,59278.0,59277.0,0.0750998]
[1725101503654,0.27212274,59278.0,59277.0,0.0750998]
[1725101505740,0.60951574,59278.0,59277.0,0.0750998]
[1725101511065,0.94690874,59278.0,59277.0,0.0750998]
[1725101512207,0.60951574,59278.0,59277.0,0.0750998]
[1725101515225,0.94690874,59278.0,59277.0,0.0750998]
[1725101515656,0.94690874,59278.0,59277.0,0.52502972]
[1725101515870,0.94690874,59278.0,59277.0,0.15039391]
[1725101516751,0.94690874,59278.0,59277.0,0.0750998]
[1725101519455,0.94690874,59278.0,59277.0,0.15039391]
[1725101520088,0.94690874,59278.0,59277.0,0.44974572]
[1725101521379,0.94690874,59278.0,59277.0,0.44974157]
[1725101524065,0.94690874,59278.0,59277.0,0.52764157]
[1725101526094,0.27212274,59278.0,59277.0,0.52764157]
[1725101526335,0.27212274,59278.0,59277.0,0.6282539]
[1725101526797,0.10342674,59278.0,59277.0,0.6282539]
[1725101527070,0.00342674,59278.0,59277.0,0.6282539]
[1725101527292,0.10342674,59278.0,59277.0,0.6282539]
[1725101528299,0.00342674,59278.0,59277.0,0.6282539]
[1725101528546,0.00342674,59278.0,59277.0,1.24236719]
[1725101528760,0.000818,59278.0,59277.0,1.45399977]
[1725101529002,0.000818,59278.0,59277.0,1.79139777]
[1725101529701,0.000818,59278.0,59277.0,1.78439777]
[1725101529911,0.000818,59278.0,59277.0,1.79239777]
[1725101530352,0.001818,59278.0,59277.0,1.80839777]
[1725101530580,0.001818,59278.0,59277.0,1.80639777]
[1725101530856,0.001818,59278.0,59277.0,1.80631629]
[1725101534780,0.16866,59291.0,59284.0,0.168677]
[1725101535006,0.16866,59291.0,59283.0,0.337364]
[1725101535007,0.1,59290.0,59287.0,0.05020538]
[1725101535232,0.1,59290.0,59288.0,0.0653]